bitfinex/quotes_SOLUSD_20220119
["timestamp","ask_amount","ask_price","bid_price","bid_amount"]
[1642589662492,2.98,134.25,134.15,22.8091]
[1642589662687,6.25,134.24,134.15,22.8091]
[1642589662886,6.25,134.24,134.16,37.4628642]
[1642589663090,2.98,134.23,134.16,37.4628642]
[1642589663288,2.98,134.27,134.17,3.23]
[1642589663489,23.02,134.28,134.18,10.73]
[1642589663689,23.02,134.28,134.2,45.27898457]
[1642589663887,2.98,134.3,134.2,45.27898457]
[1642589664089,35.6477,134.31,134.21,19.959]
[1642589664290,35.6477,134.31,134.24,47.69132249]
[1642589665990,0.25,134.3,134.24,47.69132249]
[1642589667092,2.979,134.34,134.24,122.17132249]
[1642589667394,2.979,134.34,134.27,11.1691]
[1642589667599,58.32241173,134.33,134.28,39.15219946]
[1642589667792,58.32241173,134.33,134.28,49.88219946]
[1642589668200,11.1683,134.36,134.28,10.73]
[1642589668401,2.977,134.35,134.28,10.73]
[1642589668600,2.977,134.36,134.28,10.73]
[1642589669202,11.1692,134.35,134.28,10.73]
[1642589669401,2.978,134.34,134.28,10.73]
[1642589669604,2.978,134.34,134.25,49.3413]
[1642589669800,4.98888556,134.36,134.25,2.979]
[1642589670000,28.78698556,134.36,134.26,6.0]
[1642589670203,0.25,134.35,134.26,6.0]
[1642589670402,2.978,134.34,134.26,6.0]
[1642589670602,2.978,134.34,134.26,35.76425299]
[1642589670803,0.25,134.33,134.26,35.76425299]
[1642589671000,11.4208,134.33,134.26,46.93525299]
[1642589671201,2.978,134.32,134.27,10.98]
[1642589671502,2.978,134.36,134.28,6.0]
[1642589671801,24.7728,134.37,134.29,37.81974471]
[1642589672001,35.9402,134.37,134.31,11.1668]
[1642589672202,4.98888556,134.38,134.32,40.45661148]
[1642589672803,0.25,134.37,134.32,40.45661148]
[1642589673201,16.15548556,134.38,134.32,40.45661148]
[1642589673608,16.15548556,134.38,134.28,19.707]
[1642589673801,16.15548556,134.38,134.28,16.73]
[1642589674003,6.0,134.37,134.28,10.73]
[1642589674204,11.1697,134.35,134.28,10.73]
[1642589674601,0.25,134.34,134.26,2.977]
[1642589674805,2.978,134.34,134.26,2.977]
[1642589675002,7.01277946,134.35,134.26,2.977]
[1642589675202,4.03477946,134.35,134.26,2.977]
[1642589675426,2.978,134.34,134.26,2.977]
[1642589675827,0.25,134.33,134.26,2.977]
[1642589676027,2.978,134.32,134.26,2.977]
[1642589676226,0.25,134.31,134.25,10.73]
[1642589676426,0.25,134.31,134.26,6.0]
[1642589677426,11.1727,134.31,134.25,6.0]
[1642589677826,2.978,134.32,134.23,10.73]
[1642589677827,0.25,134.3,134.23,10.73]
[1642589678029,0.25,134.3,134.21,2.10888557]
[1642589678030,3.228,134.3,134.21,2.10888557]
[1642589678227,0.25,134.3,134.2,2.10888557]
[1642589678427,11.1774,134.26,134.19,53.59643643]
[1642589678727,0.25,134.25,134.19,15.81788557]
[1642589678927,0.25,134.25,134.19,12.83888557]
[1642589679126,0.25,134.25,134.19,10.73]
[1642589680032,11.1774,134.25,134.18,5.08888557]
[1642589680231,3.23,134.24,134.17,2.10888557]
[1642589680429,3.23,134.24,134.16,2.10888557]
[1642589680631,3.23,134.24,134.15,2.10888557]
[1642589680830,3.23,134.24,134.16,39.69289479]
[1642589681231,3.23,134.24,134.17,0.25]
[1642589681433,2.98,134.27,134.17,21.33265662]
[1642589681633,2.98,134.3,134.18,1.37265662]
[1642589681834,0.25,134.26,134.19,62.79248237]
[1642589682031,0.25,134.26,134.19,68.79248237]
[1642589682231,0.25,134.26,134.19,144.64513899]
[1642589682431,0.25,134.26,134.19,155.82123899]
[1642589682634,0.25,134.26,134.19,76.98958237]
[1642589682832,0.25,134.27,134.19,21.9061]
[1642589683033,2.979,134.26,134.19,11.1761]
[1642589683235,0.25,134.25,134.19,11.1761]
[1642589684536,11.1778,134.25,134.17,24.9412]
[1642589684737,3.23,134.24,134.17,24.9412]
[1642589685535,14.4089,134.24,134.16,24.8894]
[1642589685738,14.4089,134.24,134.14,24.94248557]
[1642589685937,14.4089,134.24,134.14,35.67248557]
[1642589686140,14.4089,134.24,134.14,33.5636]
[1642589686836,14.4089,134.24,134.14,10.73]
[1642589687036,14.4089,134.24,134.12,15.81888557]
[1642589687236,1.7738939,134.23,134.12,2.10888557]
[1642589687436,11.1863,134.19,134.12,2.10888557]
[1642589687638,2.981,134.18,134.08,10.73]
[1642589687836,2.981,134.18,134.09,34.77835943]
[1642589687837,2.731,134.18,134.09,34.77835943]
[1642589688036,0.25,134.18,134.09,34.77835943]
[1642589688240,0.25,134.2,134.1,10.35445418]
[1642589688439,11.1816,134.21,134.1,21.33445418]
[1642589688640,11.4316,134.21,134.11,3.48133975]
[1642589688836,11.1816,134.21,134.12,55.47076166]
[1642589689036,11.1816,134.21,134.12,63.09321584]
[1642589689237,11.1816,134.21,134.13,1.62245418]
[1642589689437,11.1816,134.21,134.13,12.35245418]
[1642589689838,11.1801,134.22,134.14,11.1803]
[1642589690138,2.981,134.25,134.15,49.62608708]
[1642589690340,33.88868813,134.26,134.15,49.87608708]
[1642589690540,30.90868813,134.26,134.16,7.37245418]
[1642589690737,30.90868813,134.26,134.17,0.25]
[1642589691437,11.1768,134.26,134.18,11.1776]
[1642589691639,0.25,134.25,134.19,38.41716485]
[1642589691838,0.25,134.25,134.18,11.1776]
[1642589692038,0.25,134.27,134.16,66.4974]
[1642589692238,2.98,134.24,134.16,10.73]
[1642589692439,2.98,134.26,134.13,34.1055]
[1642589692640,3.231,134.23,134.13,40.1055]
[1642589692841,11.1804,134.22,134.13,72.78815965]
[1642589693043,2.981,134.21,134.13,72.78815965]
[1642589693243,0.25,134.21,134.13,72.78815965]
[1642589693449,0.25,134.21,134.14,0.25]
[1642589693641,0.25,134.21,134.14,6.0]
[1642589693942,11.431,134.21,134.14,17.1804]
[1642589694242,11.431,134.21,134.14,11.1804]
[1642589695343,2.981,134.2,134.14,11.1804]
[1642589695745,0.25,134.19,134.14,11.1804]
[1642589696746,0.25,134.19,134.13,34.1055]
[1642589696946,0.25,134.19,134.13,45.2874]
[1642589698849,0.25,134.19,134.13,34.5574]
[1642589700650,0.25,134.19,134.13,11.1819]
[1642589702982,11.4325,134.19,134.13,11.1819]
[1642589703283,0.25,134.18,134.13,11.1819]
[1642589703484,0.25,134.18,134.12,11.1827]
[1642589703685,0.25,134.18,134.12,21.9127]
[1642589705282,0.25,134.19,134.12,21.9127]
[1642589708687,11.4327,134.19,134.12,21.9127]
[1642589708894,11.1827,134.19,134.12,21.9127]
[1642589709087,0.25,134.18,134.12,21.9127]
[1642589709996,2.981,134.2,134.12,57.74311446]
[1642589710195,0.25,134.18,134.12,132.22311446]
[1642589710696,11.1812,134.21,134.12,132.22311446]
[1642589711298,14.1606,134.22,134.12,133.58922883]
[1642589711499,24.1242,134.23,134.13,3.231]
[1642589711698,2.981,134.22,134.17,34.80799699]
[1642589711898,3.231,134.22,134.17,34.80799699]
[1642589712931,2.981,134.22,134.17,34.80799699]
[1642589713497,14.158,134.24,134.17,45.98599699]
[1642589713697,11.178,134.24,134.17,11.178]
[1642589714099,0.25,134.23,134.17,11.178]
[1642589714701,0.25,134.23,134.17,60.55578856]
[1642589715101,0.25,134.24,134.17,60.55578856]
[1642589715502,14.1571,134.25,134.18,74.48]
[1642589715704,2.01088556,134.26,134.2,48.5754967]
[1642589715902,4.99088556,134.28,134.2,48.5754967]
[1642589716103,28.46658556,134.29,134.2,48.5754967]
[1642589716302,0.25,134.27,134.2,48.5754967]
[1642589716503,2.01088556,134.29,134.2,48.5754967]
[1642589716708,0.25,134.28,134.2,48.5754967]
[1642589716903,0.25,134.28,134.21,11.1748]
[1642589717703,0.25,134.29,134.21,11.1748]
[1642589721504,11.4239,134.29,134.21,11.1748]
[1642589724906,2.979,134.28,134.19,10.73]
[1642589725105,11.1765,134.26,134.19,10.73]
[1642589725305,11.1765,134.26,134.18,11.1771]
[1642589725306,3.23,134.25,134.18,11.1771]
[1642589725505,3.23,134.25,134.19,6.0]
[1642589725705,0.25,134.25,134.18,11.1771]
[1642589725909,2.98,134.24,134.18,11.1771]
[1642589726106,2.98,134.24,134.17,10.73]
[1642589726305,0.25,134.23,134.17,10.73]
[1642589726506,11.4295,134.23,134.16,36.0468]
[1642589726705,2.98,134.22,134.16,36.0468]
[1642589726907,2.98,134.22,134.16,24.8673]
[1642589727111,0.25,134.21,134.16,24.8673]
[1642589727306,0.25,134.21,134.15,23.3738]
[1642589727934,11.4305,134.21,134.15,34.554]
[1642589728107,11.4305,134.21,134.15,23.3738]
[1642589729319,0.25,134.21,134.15,23.3738]
[1642589729519,2.98,134.22,134.15,23.3738]
[1642589729723,0.25,134.21,134.15,23.3738]
[1642589730119,0.25,134.21,134.15,34.554]
[1642589730720,0.25,134.22,134.15,34.554]
[1642589730921,2.98,134.21,134.15,34.554]
[1642589731322,0.25,134.2,134.15,34.554]
[1642589735230,0.25,134.21,134.15,34.554]
[1642589735444,0.25,134.21,134.16,17.1793]
[1642589735845,2.981,134.23,134.16,17.1793]
[1642589735846,0.25,134.22,134.16,62.73057161]
[1642589736647,2.981,134.23,134.16,62.73057161]
[1642589736847,14.157,134.25,134.16,64.09668598]
[1642589737048,2.98,134.26,134.16,64.09668598]
[1642589737247,0.25,134.26,134.16,64.09668598]
[1642589737450,0.25,134.26,134.16,89.05018598]
[1642589737848,0.25,134.26,134.16,174.26018598]
[1642589738049,14.1561,134.27,134.16,174.26018598]
[1642589738248,2.98,134.27,134.16,177.24018598]
[1642589739049,11.1764,134.26,134.19,11.1765]
[1642589739250,0.25,134.25,134.19,53.18340437]
[1642589739649,0.25,134.25,134.19,11.1765]
[1642589740251,0.25,134.26,134.19,11.1765]
[1642589740457,11.1773,134.25,134.18,11.1777]
[1642589740752,0.25,134.24,134.18,11.1777]
[1642589741751,2.98,134.25,134.18,11.1777]
[1642589742152,0.25,134.24,134.18,11.1777]
[1642589742557,11.4282,134.24,134.16,41.6835]
[1642589742753,2.98,134.23,134.16,30.9535]
[1642589743155,0.25,134.22,134.16,30.9535]
[1642589743356,2.98,134.21,134.16,30.9535]
[1642589743756,0.25,134.2,134.16,30.9535]
[1642589744255,0.25,134.2,134.16,6.0]
[1642589744858,0.25,134.24,134.16,6.0]
[1642589745063,2.98,134.23,134.16,6.0]
[1642589745258,0.25,134.22,134.16,6.0]
[1642589745458,11.1813,134.2,134.16,6.0]
[1642589745861,0.25,134.19,134.16,6.0]
[1642589746059,0.25,134.19,134.14,10.73]
[1642589746260,6.269,134.19,134.12,24.8921]
[1642589746560,6.269,134.19,134.12,13.71]
[1642589746962,17.4511,134.19,134.12,2.98]
[1642589747160,8.981,134.18,134.12,2.98]
[1642589747360,10.7548939,134.18,134.07,2.10888557]
[1642589747564,10.7548939,134.18,134.06,68.50673826]
[1642589747758,0.25,134.17,134.06,68.50673826]
[1642589747962,2.982,134.16,134.06,68.50673826]
[1642589748159,11.1868,134.14,134.07,11.1868]
[1642589748561,0.25,134.13,134.07,11.1868]
[1642589749661,10.6868,134.14,134.07,11.1868]
[1642589750065,2.982,134.16,134.07,11.1868]
[1642589750264,8.982,134.18,134.11,11.1834]
[1642589750467,6.0,134.18,134.12,39.9545295]
[1642589751163,6.019,134.19,134.12,39.9545295]
[1642589751466,14.4138,134.18,134.12,39.9545295]
[1642589751661,11.4328,134.18,134.12,39.9545295]
[1642589752161,11.4328,134.18,134.11,11.1834]
[1642589752365,2.981,134.17,134.11,11.1834]
[1642589752765,0.25,134.16,134.11,11.1834]
[1642589753867,0.25,134.16,134.1,60.79302722]
[1642589754064,0.25,134.16,134.1,11.1843]
[1642589754464,6.25,134.17,134.1,11.1843]
[1642589754666,14.1665,134.16,134.09,23.7339]
[1642589755068,0.25,134.15,134.09,23.7339]
[1642589756072,0.25,134.15,134.09,34.9191]
[1642589756566,3.232,134.18,134.09,34.9191]
[1642589757364,14.4149,134.18,134.09,34.9191]
[1642589759665,6.0,134.17,134.09,34.9191]
[1642589759965,17.1841,134.17,134.09,34.9191]
[1642589760170,0.25,134.16,134.09,34.9191]
[1642589760366,2.982,134.18,134.09,34.9191]
[1642589760569,2.982,134.2,134.12,85.6607]
[1642589760767,0.25,134.19,134.12,96.3907]
[1642589760967,0.25,134.19,134.12,120.8119]
[1642589761369,8.981,134.23,134.12,120.8119]
[1642589761577,11.1804,134.21,134.12,46.3319]
[1642589762670,11.1804,134.21,134.12,49.3129]
[1642589763269,6.0,134.2,134.12,49.3129]
[1642589763469,6.0,134.2,134.12,46.3319]
[1642589763667,0.25,134.19,134.12,46.3319]
[1642589764267,0.25,134.19,134.12,10.73]
[1642589764468,0.25,134.19,134.1,10.73]
[1642589764469,2.981,134.18,134.1,10.73]
[1642589764668,2.981,134.18,134.08,33.8069]
[1642589764869,6.25,134.17,134.08,33.8069]
[1642589765273,2.982,134.16,134.09,46.17286172]
[1642589765469,20.1671,134.16,134.09,46.17286172]
[1642589765671,0.25,134.15,134.09,46.17286172]
[1642589765970,6.25,134.15,134.09,46.17286172]
[1642589766169,0.25,134.15,134.09,46.17286172]
[1642589766870,6.25,134.16,134.09,46.17286172]
[1642589767072,6.25,134.16,134.08,44.9922]
[1642589767471,11.1858,134.15,134.08,33.8069]
[1642589767875,0.25,134.14,134.08,10.73]
[1642589768073,2.982,134.15,134.06,58.70665904]
[1642589768273,0.25,134.14,134.06,58.70665904]
[1642589768572,2.982,134.13,134.06,58.70665904]
[1642589768774,0.25,134.12,134.05,59.5136]
[1642589768975,0.25,134.12,134.05,70.7022]
[1642589769775,0.25,134.12,134.06,48.63797679]
[1642589769978,11.1885,134.13,134.06,48.63797679]
[1642589770175,0.25,134.12,134.06,59.82557679]
[1642589770576,6.25,134.12,134.06,59.82557679]
[1642589771177,6.0,134.12,134.06,59.82557679]
[1642589771378,11.1861,134.15,134.06,136.41446236]
[1642589771578,11.1861,134.15,134.07,5.34088557]
[1642589771780,0.25,134.14,134.09,11.1849]
[1642589771979,0.25,134.14,134.1,43.72527957]
[1642589772380,2.982,134.19,134.1,43.72527957]
[1642589772580,2.982,134.2,134.1,43.72527957]
[1642589772780,2.982,134.2,134.11,23.8425]
[1642589773380,2.982,134.2,134.11,109.5053]
[1642589773580,0.25,134.19,134.11,120.2353]
[1642589773781,0.25,134.19,134.11,123.70042361]
[1642589774080,0.25,134.19,134.11,126.68142361]
[1642589774280,0.25,134.2,134.11,126.68142361]
[1642589775181,0.25,134.2,134.11,50.84518557]
[1642589776588,11.4313,134.2,134.11,50.84518557]
[1642589777418,0.25,134.2,134.11,50.84518557]
[1642589777717,0.25,134.2,134.14,11.1797]
[1642589778918,2.981,134.21,134.14,11.1797]
[1642589779322,24.776,134.24,134.17,11.1778]
[1642589780018,23.2407,134.26,134.17,11.1778]
[1642589780219,23.2407,134.26,134.17,34.9081]
[1642589780420,0.25,134.25,134.17,36.26433804]
[1642589780626,0.25,134.25,134.18,10.73]
[1642589780819,3.23,134.27,134.2,11.1753]
[1642589781021,2.98,134.27,134.2,11.1753]
[1642589782020,24.1663,134.28,134.2,11.1753]
[1642589782423,35.3412,134.28,134.2,11.1753]
[1642589783225,0.25,134.27,134.2,11.1753]
[1642589784123,0.25,134.27,134.22,11.1741]
[1642589784324,0.25,134.28,134.23,37.82797105]
[1642589784524,11.1741,134.29,134.23,37.82797105]
[1642589785727,0.25,134.28,134.23,37.82797105]
[1642589786126,11.4249,134.28,134.2,10.73]
[1642589786326,2.979,134.27,134.18,10.73]
[1642589786526,40.2425,134.27,134.17,2.979]
[1642589786726,0.25,134.26,134.17,2.979]
[1642589786930,2.98,134.25,134.16,21.9095]
[1642589787129,14.1591,134.25,134.18,42.40818705]
[1642589787328,0.25,134.24,134.18,42.40818705]
[1642589787727,0.25,134.24,134.18,53.58598705]
[1642589788127,0.25,134.24,134.18,54.94222509]
[1642589788331,11.1758,134.27,134.18,54.94222509]
[1642589788729,0.25,134.26,134.19,0.25]
[1642589788930,0.25,134.26,134.21,11.1743]
[1642589789329,0.25,134.26,134.19,27.8251]
[1642589789530,0.25,134.26,134.19,24.8461]
[1642589791436,0.25,134.26,134.2,11.1761]
[1642589791830,11.4266,134.26,134.2,11.1761]
[1642589792031,11.1766,134.26,134.2,11.1761]
[1642589792230,0.25,134.25,134.2,11.1761]
[1642589792631,2.979,134.27,134.2,11.1761]
[1642589792831,24.9362,134.29,134.21,0.25]
[1642589793034,11.174,134.29,134.22,11.1742]
[1642589793232,1.26702252,134.3,134.23,43.82198257]
[1642589793233,0.25,134.28,134.23,43.82198257]
[1642589793439,26.0532,134.32,134.23,43.82198257]
[1642589794534,11.1731,134.31,134.25,11.1719]
[1642589794734,11.4231,134.31,134.25,11.1719]
[1642589795462,11.4231,134.31,134.23,54.99498257]
[1642589799943,14.4021,134.31,134.23,11.173]
[1642589800243,17.1736,134.3,134.22,34.1197]
[1642589800443,4.98988556,134.29,134.2,22.5716]
[1642589800644,2.01088556,134.28,134.2,22.5716]
[1642589800845,2.979,134.27,134.18,24.3576]
[1642589801045,3.229,134.27,134.2,40.31973492]
[1642589801450,3.229,134.27,134.2,51.49413492]
[1642589802146,0.25,134.27,134.2,51.49413492]
[1642589803671,4.98988556,134.28,134.2,51.49413492]
[1642589803871,29.13858556,134.29,134.2,51.49413492]
[1642589805274,0.25,134.28,134.2,51.49413492]
[1642589805676,40.31228556,134.29,134.2,51.49413492]
[1642589805874,29.13858556,134.29,134.2,51.49413492]
[1642589806077,29.13858556,134.29,134.2,40.31973492]
[1642589806275,39.86858556,134.29,134.19,8.979]
[1642589806477,2.01088556,134.27,134.19,8.979]
[1642589806678,2.979,134.26,134.19,8.979]
[1642589807074,0.25,134.25,134.19,8.979]
[1642589807474,0.25,134.25,134.19,2.979]
[1642589807674,11.1783,134.24,134.19,2.979]
[1642589807876,14.1583,134.24,134.19,2.979]
[1642589808074,0.25,134.23,134.19,2.979]
[1642589809179,0.25,134.24,134.19,2.979]
[1642589809377,0.25,134.24,134.17,24.6885]
[1642589809977,6.25,134.24,134.17,24.6885]
[1642589810177,0.25,134.24,134.17,24.6885]
[1642589810378,6.0,134.23,134.17,24.6885]
[1642589810577,11.428,134.24,134.17,24.6885]
[1642589813579,11.1799,134.22,134.15,2.98]
[1642589813782,0.25,134.21,134.14,23.9966]
[1642589813979,3.231,134.21,134.14,23.9966]
[1642589814183,0.25,134.21,134.14,23.9966]
[1642589814379,0.25,134.21,134.12,34.2794]
[1642589814584,2.981,134.2,134.13,44.72979428]
[1642589814780,0.25,134.19,134.13,44.72979428]
[1642589815581,11.4322,134.19,134.13,44.72979428]
[1642589816283,2.981,134.21,134.13,44.72979428]
[1642589816482,11.1811,134.21,134.13,44.72979428]
[1642589817683,0.25,134.2,134.13,44.72979428]
[1642589818784,11.4312,134.2,134.13,44.72979428]
[1642589818984,11.1812,134.2,134.13,44.72979428]
[1642589819190,0.25,134.19,134.13,44.72979428]
[1642589820285,0.25,134.19,134.12,34.7304]
[1642589820687,11.432,134.19,134.12,23.5494]
[1642589820889,10.182,134.19,134.12,23.5494]
[1642589821086,0.25,134.18,134.12,23.5494]
[1642589821286,0.25,134.18,134.13,39.4839392]
[1642589821487,2.981,134.21,134.13,115.32017724]
[1642589821718,0.25,134.2,134.14,1.60623804]
[1642589821887,39.27718556,134.25,134.14,1.60623804]
[1642589822086,2.01088556,134.25,134.15,7.35623804]
[1642589822289,23.5641,134.27,134.16,0.25]
[1642589822490,23.5641,134.27,134.16,86.81623804]
[1642589822690,23.5641,134.27,134.18,37.55397641]
[1642589822888,11.1762,134.26,134.18,37.55397641]
[1642589823088,2.98,134.25,134.18,37.55397641]
[1642589823289,0.25,134.24,134.18,37.55397641]
[1642589823690,6.25,134.24,134.18,37.55397641]
[1642589823891,0.25,134.24,134.18,37.55397641]
[1642589824090,6.25,134.24,134.18,37.55397641]
[1642589824292,0.25,134.24,134.18,37.55397641]
[1642589824490,11.1793,134.23,134.19,1.35623804]
[1642589824691,0.25,134.22,134.19,1.35623804]
[1642589824891,6.06439993,134.21,134.19,1.35623804]
[1642589825892,6.06439993,134.21,134.19,75.83623804]
[1642589826093,6.06439993,134.21,134.19,1.35623804]
[1642589826292,1.60349398,134.3,134.2,1.35623804]
[1642589826293,4.99088556,134.29,134.2,1.35623804]
[1642589826497,4.99088556,134.29,134.2,12.53103804]
[1642589826693,6.0,134.28,134.2,12.53103804]
[1642589826896,6.0,134.28,134.21,1.35623804]
[1642589827093,6.0,134.28,134.21,1.60623804]
[1642589827294,17.1746,134.28,134.21,1.35623804]
[1642589827593,6.0,134.28,134.21,12.53023804]
[1642589827795,26.94117954,134.3,134.22,0.25]
[1642589827993,24.93029398,134.3,134.22,0.25]
[1642589828795,1.60349398,134.3,134.22,0.25]
[1642589829220,1.60349398,134.3,134.23,42.78047775]
[1642589829424,1.60349398,134.3,134.23,53.95287775]
[1642589830221,0.25,134.29,134.23,53.95287775]
[1642589831024,1.60349398,134.3,134.23,129.78911579]
[1642589831224,1.60349398,134.3,134.24,11.4216]
[1642589833225,24.9182,134.33,134.24,23.50783804]
[1642589833423,2.01088556,134.34,134.25,2.978]
[1642589833623,2.01088556,134.34,134.27,11.1681]
[1642589833823,2.01088556,134.35,134.28,38.64817012]
[1642589834023,13.17958556,134.35,134.28,38.64817012]
[1642589834426,11.1687,134.35,134.28,38.64817012]
[1642589835425,11.1687,134.35,134.28,49.81657012]
[1642589835628,0.25,134.34,134.28,49.81657012]
[1642589837132,2.978,134.36,134.31,11.1656]
[1642589837328,4.98888556,134.38,134.31,11.1656]
[1642589837531,6.0,134.37,134.31,85.6456]
[1642589837930,2.01088556,134.39,134.31,85.6456]
[1642589838130,6.0,134.38,134.31,85.6456]
[1642589838532,0.25,134.37,134.31,11.1656]
[1642589839636,0.25,134.37,134.3,11.1668]
[1642589840537,0.25,134.37,134.29,23.3306]
[1642589840836,11.4171,134.37,134.29,34.4982]
[1642589841037,4.5799079,134.36,134.29,34.4982]
[1642589841236,0.25,134.35,134.29,34.2482]
[1642589841636,0.25,134.35,134.29,23.0806]
[1642589842036,11.4187,134.35,134.29,23.0806]
[1642589842436,14.3957,134.35,134.28,11.1684]
[1642589843236,14.3957,134.35,134.27,46.6699]
[1642589844438,3.227,134.35,134.27,46.6699]
[1642589844641,0.25,134.35,134.27,46.6699]
[1642589845039,0.25,134.36,134.27,46.6699]
[1642589845240,0.25,134.36,134.27,124.1269]
[1642589845442,0.25,134.36,134.27,130.7859]
[1642589845940,0.25,134.36,134.27,132.14213804]
[1642589846142,0.25,134.36,134.28,0.25]
[1642589846340,0.25,134.36,134.3,11.1668]
[1642589846942,0.25,134.36,134.31,35.23490528]
[1642589850240,0.25,134.36,134.3,11.1668]
[1642589851642,0.25,134.36,134.29,13.707]
[1642589851842,11.4179,134.36,134.29,10.73]
[1642589852041,17.4179,134.36,134.29,10.73]
[1642589852445,19.42878556,134.36,134.29,10.73]
[1642589852843,4.2978946,134.35,134.29,10.73]
[1642589853043,15.4666946,134.35,134.29,10.73]
[1642589853244,0.25,134.34,134.29,10.73]
[1642589854745,0.25,134.35,134.29,10.73]
[1642589855246,19.48940862,134.35,134.29,10.73]
[1642589855560,0.25,134.35,134.29,10.73]
[1642589855945,2.26088556,134.35,134.29,10.73]
[1642589856849,2.26088556,134.35,134.29,21.8976]
[1642589857252,2.01088556,134.35,134.29,21.8976]
[1642589859751,0.25,134.34,134.29,10.73]
[1642589859955,2.26088556,134.34,134.29,10.73]
[1642589861652,2.01088556,134.34,134.29,10.73]
[1642589862456,2.01088556,134.34,134.29,21.8977]
[1642589863079,2.01088556,134.33,134.29,21.8977]
[1642589864481,2.01088556,134.33,134.29,10.73]
[1642589866483,2.01088556,134.33,134.29,21.8976]
[1642589870801,2.01088556,134.34,134.3,0.25]
[1642589870992,2.01088556,134.34,134.3,11.4165]
[1642589872595,2.01088556,134.34,134.3,22.1465]
[1642589872900,2.01088556,134.35,134.32,11.1651]
[1642589873497,2.01088556,134.35,134.32,55.56686944]
[1642589875601,2.01088556,134.36,134.32,55.56686944]
[1642589875899,2.01088556,134.36,134.33,0.25]
[1642589876099,2.01088556,134.37,134.33,11.4141]
[1642589876898,1.01088556,134.37,134.33,11.4141]
[1642589877905,24.177,134.39,134.33,11.4141]
[1642589878497,2.977,134.4,134.33,11.4141]
[1642589878700,0.25,134.4,134.33,11.4141]
[1642589878899,0.25,134.4,134.33,34.9084]
[1642589879999,7.1608367,134.41,134.33,34.9084]
[1642589880403,2.976,134.41,134.33,34.9084]
[1642589880601,14.1399,134.41,134.33,34.9084]
[1642589880800,18.3247367,134.41,134.33,34.9084]
[1642589881003,2.976,134.41,134.33,34.9084]
[1642589881201,27.1627367,134.42,134.34,13.706]
[1642589881403,22.9779,134.42,134.36,11.1605]
[1642589882005,24.7743,134.43,134.36,11.1605]
[1642589882405,28.9591367,134.43,134.36,11.1605]
[1642589883011,0.25,134.42,134.36,11.1605]
[1642589883406,7.1608367,134.44,134.37,48.57609663]
[1642589883606,18.3218367,134.45,134.37,48.57609663]
[1642589883810,0.25,134.43,134.37,123.05609663]
[1642589884309,0.25,134.43,134.37,48.57609663]
[1642589884507,0.25,134.43,134.37,11.1609]
[1642589884708,11.4112,134.44,134.37,11.1609]
[1642589886007,11.4112,134.44,134.37,59.78558413]
[1642589888111,14.3872,134.44,134.37,59.78558413]
[1642589889113,14.1372,134.44,134.37,59.78558413]
[1642589889341,11.1612,134.44,134.37,59.78558413]
[1642589890542,0.25,134.43,134.37,59.78558413]
[1642589891247,24.5033,134.45,134.37,59.78558413]
[1642589891643,0.25,134.44,134.37,59.78558413]